fUSD/lending_fUSD_20241203
["ID","MTS","AMOUNT","RATE_DAILY","PERIOD"]
[344045366,1733246319894,-500.0,0.00025,120]
[344045367,1733246319931,-1959.5,0.00025,120]
[344045368,1733246319969,-8592.48,0.00025,120]
[344045369,1733246320006,-625.08,0.00025,120]
[344045370,1733246320045,-500.0,0.00025,120]
[344045371,1733246320085,-500.0,0.00025,120]
[344045372,1733246320128,-1500.21,0.00025,120]
[344045373,1733246320167,-500.0,0.00025,120]
[344045374,1733246320207,-1095.14,0.00025,120]
[344045375,1733246320246,-989.91,0.00025,120]
[344045376,1733246320285,-1129.91,0.00025,120]
[344045377,1733246320325,-500.0,0.00025,120]
[344045378,1733246320367,-500.0,0.00025,120]
[344045379,1733246320408,-500.0,0.00025,120]
[344045380,1733246320448,-1109.86,0.00025,120]
[344045381,1733246320488,-1456.3,0.00025,120]
[344045382,1733246320527,-500.0,0.00025,120]
[344045383,1733246320569,-500.0,0.00025,120]
[344045384,1733246320612,-1458.18,0.00025,120]
[344045385,1733246320653,-500.0,0.00025,120]
[344045386,1733246320699,-500.0,0.00025,120]
[344045387,1733246320744,-500.0,0.00025,120]
[344045388,1733246320788,-500.0,0.00025,120]
[344045389,1733246320833,-500.0,0.00025,120]
[344045390,1733246320880,-3219.04,0.00025,120]
[344045391,1733246320924,-500.0,0.00025,120]
[344045392,1733246320964,-1619.82,0.00025,120]
[344045393,1733246321005,-500.0,0.00025,120]
[344045394,1733246321046,-735.68,0.00025,120]
[344045395,1733246321086,-1791.28,0.00025,120]
[344045396,1733246321129,-500.0,0.00025,120]
[344045397,1733246321167,-500.0,0.00025,120]
[344045398,1733246321206,-6083.11,0.00025,120]
[344045399,1733246321244,-500.0,0.00025,120]
[344045400,1733246321284,-500.0,0.00025,120]
[344045401,1733246321322,-1182.85,0.00025,120]
[344045402,1733246321359,-500.0,0.00025,120]
[344045403,1733246321770,-500.0,0.00025,120]
[344045404,1733246321810,-500.0,0.00025,120]
[344045405,1733246321851,-415.15527143,0.00025,120]
[344045406,1733246321889,-281.23754935,0.00025,120]
[344045407,1733246321926,-521.15515046,0.00025,120]
[344045408,1733246321963,-271.65795337,0.00025,120]
[344045409,1733246321999,-1372.24,0.00025,120]
[344045410,1733246322036,-5064.19,0.00025,120]
[344045411,1733246322073,-1801.52,0.00025,120]
[344045412,1733246322110,-633.24,0.00025,120]
[344045413,1733246322147,-7053.22,0.00025,120]
[344045414,1733246322185,-1727.09,0.00025,120]
[344045415,1733246322223,-500.0,0.00025,60]
[344045416,1733246322260,-1768.81,0.00025,120]
[344045417,1733246322297,-1811.25,0.00025,120]
[344045418,1733246322336,-500.0,0.00025,120]
[344045419,1733246322375,-500.0,0.00025,120]
[344045420,1733246322417,-6817.49,0.00025,120]
[344045421,1733246322456,-314.55288508,0.00025,120]
[344045422,1733246322496,-500.0,0.00025,120]
[344045423,1733246322536,-500.0,0.00025,120]
[344045424,1733246322575,-4315.08,0.00025,120]
[344045425,1733246322612,-500.0,0.00025,120]
[344045426,1733246322649,-500.0,0.00025,120]
[344045427,1733246322686,-794.0,0.00025,120]
[344045428,1733246322724,-500.0,0.00025,120]
[344045429,1733246322761,-500.0,0.00025,120]
[344045430,1733246322798,-1834.56,0.00025,120]
[344045431,1733246322839,-2163.69,0.00025,120]
[344045432,1733246322881,-520.05063025,0.00025,120]
[344045433,1733246322920,-523.36,0.00025,120]
[344045434,1733246322960,-1954.17,0.00025,120]
[344045435,1733246323000,-500.0,0.00025,120]
[344045436,1733246323040,-637.04314387,0.00025,120]
[344045437,1733246323079,-1904.97,0.00025,120]
[344045438,1733246323123,-1431.07,0.00025,120]
[344045439,1733246323163,-1369.29,0.00025,120]
[344045440,1733246323203,-500.0,0.00025,120]
[344045441,1733246323244,-1476.53,0.00025,120]
[344045442,1733246323284,-206.44700837,0.00025,120]
[344045443,1733246323327,-713.61,0.00025,120]
[344045444,1733246323372,-787.68,0.00025,120]
[344045445,1733246323413,-500.0,0.00025,120]
[344045446,1733246323453,-1918.45,0.00025,120]
[344045447,1733246323495,-500.0,0.00025,120]
[344045448,1733246323534,-314.40175212,0.00025,120]
[344045449,1733246323574,-500.0,0.00025,120]
[344045450,1733246323614,-1392.84,0.00025,120]
[344045451,1733246323652,-500.0,0.00025,120]
[344045452,1733246323693,-3449.59,0.00025,120]
[344045453,1733246323731,-500.0,0.00025,120]
[344045454,1733246323770,-1120.44,0.00025,120]
[344045455,1733246323810,-500.0,0.00025,120]
[344045456,1733246323854,-1900.12,0.00025,120]
[344045457,1733246323894,-4022.63,0.00025,120]
[344045458,1733246323934,-500.0,0.00025,120]
[344045459,1733246323979,-2474.06,0.00025,120]
[344045460,1733246324021,-516.2892403,0.00025,60]
[344045461,1733246324060,-602.36,0.00025,120]
[344045462,1733246324102,-2205.08,0.00025,120]
[344045463,1733246324145,-978.37,0.00025,120]
[344045464,1733246324188,-754.6,0.00025,120]
[344045465,1733246324230,-550.78,0.00025,120]
[344045466,1733246324273,-185.75120908,0.00025,120]
[344045467,1733246324313,-1095.87,0.00025,120]
[344045468,1733246324354,-500.0,0.00025,120]
[344045469,1733246324396,-727.03,0.00025,120]
[344045470,1733246324438,-613.46,0.00025,120]
[344045471,1733246324480,-512.99535564,0.00025,120]
[344045472,1733246324522,-500.0,0.00025,120]
[344045473,1733246324562,-1417.04,0.00025,120]
[344045474,1733246324604,-500.0,0.00025,120]
[344045475,1733246324643,-1324.03,0.00025,120]
[344045476,1733246324683,-500.0,0.00025,120]
[344045477,1733246324724,-782.65,0.00025,120]
[344045478,1733246324766,-1886.65,0.00025,120]
[344045479,1733246324819,-500.0,0.00025,120]
[344045480,1733246324869,-500.0,0.00025,120]
[344045481,1733246324914,-1695.88,0.00025,120]
[344045482,1733246324957,-500.22992037,0.00025,120]
[344045483,1733246324997,-2488.69,0.00025,120]
[344045484,1733246325038,-500.0,0.00025,120]
[344045485,1733246325079,-500.0,0.00025,120]
[344045486,1733246325125,-3286.92,0.00025,30]
[344045487,1733246325166,-588.15,0.00025,120]
[344045488,1733246325207,-500.0,0.00025,120]
[344045489,1733246325251,-1038.17,0.00025,120]
[344045490,1733246325291,-1476.51,0.00025,120]
[344045491,1733246325333,-1366.96,0.00025,120]
[344045492,1733246325376,-6048.91,0.00025,120]
[344045493,1733246325418,-500.0,0.00025,120]
[344045494,1733246325459,-817.84,0.00025,120]
[344045495,1733246325507,-500.0,0.00025,120]
[344045496,1733246325549,-500.0,0.00025,120]
[344045497,1733246325593,-1694.87,0.00025,120]
[344045498,1733246326030,-1769.97,0.00025,120]
[344045499,1733246326073,-500.0,0.00025,120]
[344045500,1733246326114,-887.92,0.00025,120]
[344045501,1733246326154,-500.0,0.00025,120]
[344045502,1733246326195,-500.0,0.00025,120]
[344045503,1733246326235,-500.0,0.00025,120]
[344045504,1733246326273,-500.0,0.00025,120]
[344045505,1733246326314,-500.0,0.00025,120]
[344045506,1733246326355,-500.0,0.00025,120]
[344045507,1733246326401,-1078.5,0.00025,120]
[344045508,1733246326441,-500.0,0.00025,120]
[344045509,1733246326480,-2376.67,0.00025,120]
[344045510,1733246326524,-2962.5,0.00025,120]
[344045511,1733246326569,-3029.75,0.00025,120]
[344045512,1733246326612,-611.66,0.00025,120]
[344045513,1733246326652,-500.0,0.00025,120]
[344045514,1733246326694,-531.75,0.00025,120]
[344045515,1733246326734,-500.0,0.00025,120]
[344045516,1733246326773,-8037.32,0.00025,120]
[344045517,1733246326812,-500.0,0.00025,120]
[344045518,1733246326853,-500.0,0.00025,120]
[344045519,1733246326891,-170.43720333,0.00025,120]
[344045520,1733246326929,-500.0,0.00025,120]
[344045521,1733246326965,-1556.61,0.00025,120]
[344045522,1733246327002,-521.33,0.00025,120]
[344045523,1733246327040,-10547.32,0.00025,120]
[344045524,1733246327077,-500.0,0.00025,120]
[344045525,1733246327116,-1570.3,0.00025,120]
[344045526,1733246327156,-2242.92,0.00025,120]
[344045527,1733246327196,-645.19,0.00025,120]
[344045528,1733246327238,-537.58,0.00025,120]
[344045529,1733246327277,-748.2,0.00025,120]
[344045530,1733246327318,-1019.59,0.00025,120]
[344045531,1733246327360,-500.0,0.00025,120]
[344045532,1733246327401,-500.0,0.00025,120]
[344045533,1733246327441,-2779.73,0.00025,120]
[344045534,1733246327481,-1588.86,0.00025,120]
[344045535,1733246327521,-532.62,0.00025,120]
[344045536,1733246327562,-500.0,0.00025,120]
[344045537,1733246327605,-500.0,0.00025,120]
[344045538,1733246327643,-2040.41,0.00025,120]
[344045539,1733246327684,-3868.89,0.00025,120]
[344045540,1733246327724,-1070.97,0.00025,120]
[344045541,1733246327764,-500.0,0.00025,120]
[344045542,1733246327802,-500.0,0.00025,120]
[344045543,1733246327840,-500.0,0.00025,120]
[344045544,1733246327886,-500.0,0.00025,120]
[344045545,1733246327927,-500.0,0.00025,120]
[344045546,1733246327966,-500.0,0.00025,120]
[344045547,1733246328006,-548.09616251,0.00025,120]
[344045548,1733246328046,-977.08,0.00025,30]
[344045549,1733246328087,-500.0,0.00025,120]
[344045550,1733246328132,-1984.15,0.00025,120]
[344045551,1733246328175,-1226.71,0.00025,120]
[344045552,1733246328220,-411.19290021,0.00025,120]
[344045553,1733246328263,-1338.25,0.00025,120]
[344045554,1733246328303,-2300.5,0.00025,120]
[344045555,1733246328343,-500.0,0.00025,120]
[344045556,1733246328385,-761.67,0.00025,120]
[344045557,1733246328427,-1413.58,0.00025,120]
[344045558,1733246328468,-1756.58,0.00025,120]
[344045559,1733246328511,-500.0,0.00025,120]
[344045560,1733246328553,-1092.7,0.00025,120]
[344045561,1733246328598,-500.0,0.00025,120]
[344045562,1733246328641,-1852.13,0.00025,120]
[344045563,1733246328683,-1123.68,0.00025,120]
[344045564,1733246328725,-618.36,0.00025,120]
[344045565,1733246328767,-500.0,0.00025,120]
[344045566,1733246328807,-2511.08,0.00025,120]
[344045567,1733246328856,-500.0,0.00025,120]
[344045568,1733246328899,-14999.25,0.00025,120]
[344045569,1733246328944,-500.0,0.00025,120]
[344045570,1733246328985,-500.0,0.00025,120]
[344045571,1733246329028,-500.0,0.00025,120]
[344045572,1733246329071,-1503.1,0.00025,120]
[344045573,1733246329113,-955.58,0.00025,120]
[344045574,1733246329158,-500.0,0.00025,120]
[344045575,1733246329203,-500.0,0.00025,120]
[344045576,1733246329246,-959.56,0.00025,120]
[344045577,1733246329289,-1455.85,0.00025,120]
[344045578,1733246329332,-500.0,0.00025,120]
[344045579,1733246329377,-1176.59,0.00025,120]
[344045580,1733246329421,-500.0,0.00025,120]
[344045581,1733246329463,-500.0,0.00025,120]
[344045582,1733246329505,-1909.83,0.00025,120]
[344045583,1733246329548,-3137.48,0.00025,120]
[344045584,1733246329589,-2828.4,0.00025,120]
[344045585,1733246329635,-500.0,0.00025,120]
[344045586,1733246329683,-946.81,0.00025,120]
[344045587,1733246329726,-500.0,0.00025,120]
[344045588,1733246329766,-576.06,0.00025,120]
[344045589,1733246329812,-500.0,0.00025,120]
[344045590,1733246329855,-500.0,0.00025,120]
[344045591,1733246329897,-3843.72,0.00025,120]
[344045592,1733246330279,-769.01,0.00025,120]
[344045593,1733246330321,-372.87184266,0.00025,120]
[344045594,1733246330359,-500.0,0.00025,120]
[344045595,1733246330398,-500.0,0.00025,120]
[344045596,1733246330437,-500.0,0.00025,120]
[344045597,1733246330476,-676.76,0.00025,120]
[344045598,1733246330514,-500.0,0.00025,120]
[344045599,1733246330553,-1451.86,0.00025,120]
[344045600,1733246330591,-695.97,0.00025,120]
[344045601,1733246330632,-500.0,0.00025,120]
[344045602,1733246330668,-2173.76,0.00025,120]
[344045603,1733246330704,-1053.62,0.00025,120]
[344045604,1733246330739,-2487.98,0.00025,120]
[344045605,1733246330775,-500.0,0.00025,120]
[344045606,1733246330812,-833.33,0.00025,120]
[344045607,1733246330852,-4866.38,0.00025,120]
[344045608,1733246330889,-2316.5,0.00025,120]
[344045609,1733246330927,-947.83,0.00025,120]
[344045610,1733246330965,-3087.07,0.00025,120]
[344045611,1733246331009,-500.0,0.00025,120]
[344045612,1733246331046,-2569.57,0.00025,120]
[344045613,1733246331085,-1750.75,0.00025,120]
[344045614,1733246331124,-2123.31,0.00025,120]
[344045615,1733246331162,-500.0,0.00025,120]
[344045616,1733246331200,-5678.95,0.00025,120]
[344045617,1733246331238,-890.94,0.00025,120]
[344045618,1733246331274,-6210.96,0.00025,120]
[344045619,1733246331312,-1888.85,0.00025,120]
[344045620,1733246331349,-500.0,0.00025,120]
[344045621,1733246331391,-504.46233285,0.00025,120]
[344045622,1733246331434,-2277.65,0.00025,120]
[344045623,1733246331483,-1177.75,0.00025,120]
[344045624,1733246331524,-150.0,0.00025,120]
[344045625,1733246331567,-500.0,0.00025,120]
[344045626,1733246331611,-500.0,0.00025,120]
[344045627,1733246331653,-500.0,0.00025,120]
[344045628,1733246331694,-2388.35,0.00025,120]
[344045629,1733246331736,-1081.68,0.00025,120]
[344045630,1733246331776,-500.0,0.00025,120]
[344045631,1733246331816,-2089.47,0.00025,120]
[344045632,1733246331862,-500.0,0.00025,120]
[344045633,1733246331904,-500.0,0.00025,120]
[344045634,1733246331945,-2195.21,0.00025,120]
[344045635,1733246331984,-500.0,0.00025,120]
[344045636,1733246332022,-1320.17,0.00025,120]
[344045637,1733246332062,-11673.27,0.00025,120]
[344045638,1733246332101,-649.39,0.00025,120]
[344045639,1733246332142,-1539.82,0.00025,120]
[344045640,1733246332182,-500.0,0.00025,120]
[344045641,1733246332222,-500.0,0.00025,120]
[344045642,1733246332261,-2229.1,0.00025,120]
[344045643,1733246332301,-500.0,0.00025,120]
[344045644,1733246332341,-500.0,0.00025,120]
[344045645,1733246332382,-1626.37,0.00025,120]
[344045646,1733246332419,-564.03,0.00025,120]
[344045647,1733246332456,-892.42,0.00025,120]
[344045648,1733246332492,-1107.9,0.00025,120]
[344045649,1733246332528,-3238.66,0.00025,120]
[344045650,1733246332564,-732.8,0.00025,120]
[344045651,1733246332602,-500.0,0.00025,120]
[344045652,1733246332640,-732.8,0.00025,120]
[344045653,1733246332677,-1416.32,0.00025,120]
[344045654,1733246332712,-732.8,0.00025,120]
[344045655,1733246332746,-500.0,0.00025,120]
[344045656,1733246332781,-732.8,0.00025,120]
[344045657,1733246332816,-732.8,0.00025,120]
[344045658,1733246332852,-732.8,0.00025,120]
[344045659,1733246332888,-771.01,0.00025,120]
[344045660,1733246332923,-732.8,0.00025,120]
[344045661,1733246332957,-732.8,0.00025,120]
[344045662,1733246332992,-732.8,0.00025,120]
[344045663,1733246333028,-732.8,0.00025,120]
[344045664,1733246333064,-732.8,0.00025,120]
[344045665,1733246333100,-732.8,0.00025,120]
[344045666,1733246333138,-732.8,0.00025,120]
[344045667,1733246333173,-732.8,0.00025,120]
[344045668,1733246333210,-500.0,0.00025,120]
[344045669,1733246333245,-732.8,0.00025,120]
[344045670,1733246333283,-500.0,0.00025,120]
[344045671,1733246333321,-732.8,0.00025,120]
[344045672,1733246333364,-794.36,0.00025,120]
[344045673,1733246333412,-3114.58,0.00025,120]
[344045674,1733246333457,-1552.96,0.00025,120]
[344045675,1733246333499,-732.8,0.00025,120]
[344045676,1733246333540,-1604.81,0.00025,120]
[344045677,1733246333580,-3034.79,0.00025,120]
[344045678,1733246333620,-732.8,0.00025,120]
[344045679,1733246333659,-732.8,0.00025,120]
[344045680,1733246333699,-526.92910832,0.00025,120]
[344045681,1733246333741,-732.8,0.00025,120]
[344045682,1733246333780,-9386.34,0.00025,120]
[344045683,1733246333819,-732.8,0.00025,120]
[344045684,1733246333860,-732.8,0.00025,120]
[344045685,1733246333899,-2511.29,0.00025,120]
[344045686,1733246333937,-732.8,0.00025,120]
[344045687,1733246334340,-1228.87,0.00025,120]
[344045688,1733246334386,-732.92883227,0.00025,120]
[344045689,1733246334427,-500.0,0.00025,120]
[344045690,1733246334470,-1438.16,0.00025,120]
[344045691,1733246334512,-504.91,0.00025,120]
[344045692,1733246334553,-500.0,0.00025,120]
[344045693,1733246334594,-1228.49,0.00025,120]
[344045694,1733246334640,-987.01,0.00025,120]
[344045695,1733246334681,-500.0,0.00025,120]
[344045696,1733246334722,-500.0,0.00025,120]
[344045697,1733246334763,-1869.76,0.00025,120]
[344045698,1733246334804,-575.2,0.00025,120]
[344045699,1733246334849,-500.0,0.00025,120]
[344045700,1733246334895,-1707.41,0.00025,120]
[344045701,1733246334939,-5581.01,0.00025,60]
[344045702,1733246334985,-2000.0,0.00025174,120]
[344045703,1733246335030,-500.0,0.00025265,120]
[344045704,1733246335074,-500.0,0.00025273,120]
[344045705,1733246335116,-500.0,0.00025273,120]
[344045706,1733246335158,-500.0,0.00025273,120]
[344045707,1733246335200,-500.0,0.00025273,120]
[344045708,1733246335243,-500.0,0.00025273,120]
[344045709,1733246335285,-500.0,0.00025273,120]
[344045710,1733246335331,-500.0,0.00025273,120]
[344045711,1733246335375,-500.0,0.00025273,120]
[344045712,1733246335419,-500.0,0.00025273,120]
[344045713,1733246335460,-500.0,0.00025273,120]
[344045714,1733246335500,-500.0,0.00025273,120]
[344045715,1733246335550,-500.0,0.00025273,120]
[344045716,1733246335594,-500.0,0.00025273,120]
[344045717,1733246335638,-500.0,0.00025273,120]
[344045718,1733246335680,-500.0,0.00025273,120]
[344045719,1733246335722,-500.0,0.00025273,120]
[344045720,1733246335764,-500.0,0.00025273,120]
[344045721,1733246335807,-315.12950776,0.00025273,120]
[344045722,1733246335850,-500.0,0.00025273,120]
[344045723,1733246335899,-500.0,0.00025273,120]
[344045724,1733246335944,-500.0,0.00025273,120]
[344045725,1733246335988,-500.0,0.00025273,120]
[344045726,1733246336033,-500.0,0.00025273,120]
[344045727,1733246336077,-622.02371094,0.00025273,120]
[344045728,1733246336121,-500.0,0.00025273,120]
[344045729,1733246336164,-244.09414044,0.00025273,120]
[344045730,1733246336208,-512.5545533,0.00025273,120]
[344045731,1733246336252,-500.0,0.00025273,120]
[344045732,1733246336298,-500.0,0.00025273,120]
[344045733,1733246336342,-500.0,0.00025273,120]
[344045734,1733246336388,-500.0,0.00025273,120]
[344045735,1733246336432,-500.0,0.00025273,120]
[344045736,1733246336477,-500.0,0.00025273,120]
[344045737,1733246336521,-289.44616981,0.00025273,120]
[344045738,1733246336565,-500.0,0.00025273,120]
[344045739,1733246336609,-500.0,0.00025273,120]
[344045740,1733246336653,-500.0,0.00025273,120]
[344045741,1733246336695,-500.0,0.00025273,120]
[344045742,1733246336739,-500.0,0.00025273,120]
[344045743,1733246336781,-500.0,0.00025273,120]
[344045744,1733246336825,-1703.96,0.00025273,120]
[344045745,1733246336868,-500.0,0.00025273,120]
[344045746,1733246336910,-500.0,0.00025273,30]
[344045747,1733246336954,-568.95,0.00025273,120]
[344045748,1733246336995,-500.0,0.00025273,120]
[344045749,1733246337043,-500.0,0.00025273,120]
[344045750,1733246337084,-500.0,0.00025273,120]
[344045751,1733246337125,-500.0,0.00025273,120]
[344045752,1733246337166,-1995.55,0.00025273,120]
[344045753,1733246337208,-500.0,0.00025273,120]
[344045754,1733246337252,-500.0,0.00025273,120]
[344045755,1733246337295,-500.0,0.00025273,120]
[344045756,1733246337338,-627.87,0.00025273,120]
[344045757,1733246337380,-500.0,0.00025273,120]
[344045758,1733246337421,-560.09,0.00025273,120]
[344045759,1733246337463,-500.0,0.00025273,120]
[344045760,1733246337507,-500.0,0.00025273,120]
[344045761,1733246337550,-500.0,0.00025273,120]
[344045762,1733246337593,-500.0,0.00025273,120]
[344045763,1733246337636,-500.0,0.00025273,120]
[344045764,1733246337679,-1240.62,0.00025273,120]
[344045765,1733246337720,-500.0,0.00025273,120]
[344045766,1733246337765,-500.0,0.00025273,120]
[344045767,1733246337806,-500.0,0.00025273,120]
[344045768,1733246337852,-1155.99,0.00025273,120]
[344045769,1733246337896,-305.96823869,0.00025273,120]
[344045770,1733246337940,-500.0,0.00025273,120]
[344045771,1733246337982,-500.0,0.00025273,120]
[344045772,1733246338024,-500.0,0.00025273,120]
[344045773,1733246338067,-500.0,0.00025273,120]
[344045774,1733246338112,-500.0,0.00025273,120]
[344045775,1733246338155,-404.00664521,0.00025273,120]
[344045776,1733246338197,-500.0,0.00025273,120]
[344045777,1733246338237,-768.58,0.00025273,120]
[344045778,1733246338277,-500.0,0.00025273,120]
[344045779,1733246338318,-699.35,0.00025273,120]
[344045780,1733246338361,-500.0,0.00025273,120]
[344045781,1733246338402,-500.0,0.00025273,120]
[344045782,1733246338752,-500.0,0.00025273,120]
[344045783,1733246338795,-500.0,0.00025273,120]
[344045784,1733246338838,-500.0,0.00025273,120]
[344045785,1733246338884,-500.0,0.00025273,120]
[344045786,1733246338931,-500.0,0.00025273,120]
[344045787,1733246338975,-1159.6,0.00025273,120]
[344045788,1733246339018,-500.0,0.00025273,120]
[344045789,1733246339061,-500.0,0.00025273,120]
[344045790,1733246339104,-500.0,0.00025273,120]
[344045791,1733246339151,-1063.83,0.00025273,120]
[344045792,1733246339195,-500.0,0.00025273,120]
[344045793,1733246339239,-478.26903496,0.00025273,120]
[344045794,1733246339284,-500.0,0.00025273,120]
[344045795,1733246339329,-500.0,0.00025273,120]
[344045796,1733246339375,-1005.73,0.00025273,120]
[344045797,1733246339419,-500.0,0.00025273,120]
[344045798,1733246339462,-834.76,0.00025273,120]
[344045799,1733246339505,-500.0,0.00025273,120]
[344045800,1733246339549,-500.0,0.00025273,120]
[344045801,1733246339593,-500.0,0.00025273,120]
[344045802,1733246339638,-940.98,0.00025273,120]
[344045803,1733246339682,-500.0,0.00025273,120]
[344045804,1733246339724,-500.0,0.00025273,120]
[344045805,1733246339768,-504.69360054,0.00025273,120]
[344045806,1733246339812,-842.25,0.00025273,120]
[344045807,1733246339857,-684.34,0.00025273,120]
[344045808,1733246339901,-500.0,0.00025273,120]
[344045809,1733246339943,-1040.24,0.00025273,120]
[344045810,1733246339984,-500.0,0.00025273,120]
[344045811,1733246340032,-1156.41,0.00025273,120]
[344045812,1733246340080,-500.0,0.00025273,120]
[344045813,1733246340125,-500.0,0.00025273,120]
[344045814,1733246340175,-500.0,0.00025273,120]
[344045815,1733246340218,-1005.6,0.00025273,120]
[344045816,1733246340262,-509.01946253,0.00025273,120]
[344045817,1733246340306,-500.0,0.00025273,120]
[344045818,1733246340350,-500.0,0.00025273,120]
[344045819,1733246340399,-500.0,0.00025273,120]
[344045820,1733246340443,-1971.36,0.00025273,120]
[344045821,1733246340486,-673.67,0.00025273,120]
[344045822,1733246340531,-500.0,0.00025273,120]
[344045823,1733246340575,-500.0,0.00025273,120]
[344045824,1733246340620,-500.0,0.00025273,120]
[344045825,1733246340662,-347.86947616,0.00025273,120]
[344045826,1733246340704,-547.01599727,0.00025273,120]
[344045827,1733246340747,-500.0,0.00025273,120]
[344045828,1733246340787,-500.0,0.00025273,120]
[344045829,1733246340830,-500.0,0.00025273,120]
[344045830,1733246340876,-2004.58,0.00025273,120]
[344045831,1733246340921,-554.20622778,0.00025273,120]
[344045832,1733246340963,-772.87,0.00025273,120]
[344045833,1733246341003,-500.0,0.00025273,120]
[344045834,1733246341043,-500.0,0.00025273,120]
[344045835,1733246341083,-500.0,0.00025273,120]
[344045836,1733246341124,-1051.56,0.00025273,120]
[344045837,1733246341163,-664.51,0.00025273,120]
[344045838,1733246341202,-500.0,0.00025273,120]
[344045839,1733246341242,-1554.3652974,0.00025273,120]
[344045840,1733246341284,-500.0,0.00025273,120]
[344045841,1733246341325,-1227.86,0.00025273,120]
[344045842,1733246341370,-500.0,0.00025273,120]
[344045843,1733246341415,-1257.21,0.00025273,120]
[344045844,1733246341459,-508.64051498,0.00025273,120]
[344045845,1733246341501,-500.0,0.00025273,120]
[344045846,1733246341541,-500.0,0.00025273,120]
[344045847,1733246341581,-500.0,0.00025273,120]
[344045848,1733246341628,-500.0,0.00025273,120]
[344045849,1733246341668,-625.67,0.00025273,120]
[344045850,1733246341707,-500.0,0.00025273,120]
[344045851,1733246341746,-500.0,0.00025273,120]
[344045852,1733246341784,-500.0,0.00025273,120]
[344045853,1733246341824,-500.0,0.00025273,120]
[344045854,1733246341868,-500.0,0.00025273,120]
[344045855,1733246341909,-500.0,0.00025273,120]
[344045856,1733246341960,-500.0,0.00025273,120]
[344045857,1733246342009,-500.0,0.00025273,120]
[344045858,1733246342054,-1139.98,0.00025273,120]
[344045859,1733246342097,-500.0,0.00025273,120]
[344045860,1733246342150,-500.0,0.00025273,120]
[344045861,1733246342197,-500.0,0.00025273,120]
[344045862,1733246342240,-603.4,0.00025273,120]
[344045863,1733246342283,-1100.51,0.00025273,120]
[344045864,1733246342325,-620.02,0.00025273,120]
[344045865,1733246342365,-500.0,0.00025273,120]